fUSD/lending_fUSD_20250426
["ID","MTS","AMOUNT","RATE_DAILY","PERIOD"]
[359069053,1745692248932,-790.75,0.00019598,2]
[359069054,1745692248947,-500.0,0.00019599,2]
[359069055,1745692248962,-500.0,0.00019626,2]
[359069056,1745692248977,-484.40263361,0.00019654,2]
[359069057,1745692248992,-187.56268801,0.00019786,2]
[359069058,1745692249006,-1734.50855816,0.00019872,2]
[359069059,1745692249021,-767.55,0.00019872,2]
[359069060,1745692249036,-300.0,0.00019872,2]
[359069061,1745692249051,-701.92,0.00019872,2]
[359069062,1745692249065,-400.0,0.00019872,2]
[359069063,1745692249079,-11867.2,0.00019872,2]
[359069064,1745692249093,-151.0,0.00019872,2]
[359069065,1745692249108,-151.0,0.00019872,2]
[359069066,1745692249124,-151.0,0.00019872,2]
[359069067,1745692249139,-867.35,0.00019872,2]
[359069068,1745692249154,-523.63,0.00019872,2]
[359069069,1745692249169,-557.44,0.00019872,2]
[359069070,1745692249184,-5922.45,0.00019872,2]
[359069071,1745692249198,-400.0,0.00019872,2]
[359069072,1745692249212,-400.0,0.00019872,2]
[359069073,1745692249226,-614.535293,0.00019872,2]
[359069074,1745692249246,-614.535293,0.00019872,2]
[359069075,1745692249263,-2260.32,0.00019872,2]
[359069076,1745692249278,-478.7,0.00019872,2]
[359069077,1745692249294,-614.535293,0.00019872,2]
[359069078,1745692249310,-614.535293,0.00019872,2]
[359069079,1745692249325,-1965.3,0.00019872,2]
[359069080,1745692249341,-151.0,0.00019872,2]
[359069081,1745692249357,-151.0,0.00019872,2]
[359069082,1745692249372,-763.67,0.00019872,2]
[359069083,1745692249387,-400.0,0.00019872,2]
[359069084,1745692249402,-151.0,0.00019872,2]
[359069085,1745692249416,-24657.9322412,0.00019872,2]
[359069086,1745692249430,-442.16,0.00019872,2]
[359069087,1745692249444,-400.0,0.00019872,2]
[359069088,1745692249458,-151.0,0.00019872,2]
[359069089,1745692249471,-3708.68,0.00019872,2]
[359069090,1745692249485,-338.61098,0.00019872,2]
[359069091,1745692249498,-338.61098,0.00019872,2]
[359069092,1745692249512,-151.0,0.00019872,2]
[359069093,1745692249527,-814.09,0.00019872,2]
[359069094,1745692249540,-151.0,0.00019872,2]
[359069095,1745692249553,-151.0,0.00019872,2]
[359069096,1745692249568,-151.0,0.00019872,2]
[359069097,1745692249582,-338.61098,0.00019872,2]
[359069098,1745692249596,-153.214432,0.00019872,2]
[359069099,1745692249609,-338.61098,0.00019872,2]
[359069100,1745692249623,-151.0,0.00019872,2]
[359069101,1745692249637,-151.0,0.00019872,2]
[359069102,1745692249650,-400.0,0.00019872,2]
[359069103,1745692249663,-909.0,0.00019872,2]
[359069104,1745692249676,-400.0,0.00019872,2]
[359069105,1745692249689,-774.28,0.00019872,2]
[359069106,1745692249702,-151.0,0.00019872,2]
[359069107,1745692249715,-151.0,0.00019872,2]
[359069108,1745692249728,-400.0,0.00019872,2]
[359069109,1745692249740,-400.0,0.00019872,2]
[359069110,1745692249753,-400.0,0.00019872,2]
[359069111,1745692249765,-790.75,0.00019872,2]
[359069112,1745692249779,-507.94481853,0.00019873,2]
[359069113,1745692249793,-154.42326506,0.00019873,2]
[359069114,1745692249806,-500.0,0.00019873,2]
[359069115,1745692249819,-505.57948583,0.00019873,2]
[359069116,1745692249832,-306.47520595,0.00019873,2]
[359069117,1745692249847,-500.70859374,0.00019873,2]
[359069118,1745692249860,-506.72470226,0.00019873,2]
[359069119,1745692249872,-500.0,0.00019873,2]
[359069120,1745692249885,-500.0,0.00019873,2]
[359069121,1745692249898,-207.41364614,0.00019873,2]
[359069122,1745692249910,-156.0410057,0.00019873,2]
[359069123,1745692249923,-500.0,0.00019873,2]
[359069124,1745692249937,-264.07621523,0.00019873,2]
[359069125,1745692249950,-500.0,0.00019873,2]
[359069126,1745692249963,-396.71242396,0.00019873,2]
[359069127,1745692249976,-161.1858119,0.00019873,2]
[359069128,1745692249989,-500.0,0.00019873,2]
[359069129,1745692250003,-500.0,0.00019873,2]
[359069130,1745692250016,-500.0,0.00019873,2]
[359069131,1745692250030,-500.0,0.00019873,2]
[359069132,1745692250044,-500.0,0.00019873,2]
[359069133,1745692250056,-2743.0,0.00019873,2]
[359069134,1745692250069,-742.58,0.00019875,2]
[359069135,1745692250083,-722.93,0.00019875,2]
[359069136,1745692250095,-400.0,0.00019875,2]
[359069137,1745692250108,-447.5,0.00019875,2]
[359069138,1745692250121,-154.540602,0.00019875,2]
[359069139,1745692250134,-400.0,0.00019875,2]
[359069140,1745692250148,-545.91,0.00019875,2]
[359069141,1745692250162,-400.0,0.00019875,2]
[359069142,1745692250175,-400.0,0.00019875,2]
[359069143,1745692250187,-151.0,0.00019875,2]
[359069144,1745692250201,-853.76,0.00019875,2]
[359069145,1745692250213,-400.0,0.00019875,2]
[359069146,1745692250226,-400.0,0.00019875,2]
[359069147,1745692250238,-994.43,0.00019875,2]
[359069148,1745692250253,-567.19,0.00019875,2]
[359069149,1745692250266,-400.0,0.00019875,2]
[359069150,1745692250280,-715.1,0.00019875,2]
[359069151,1745692250293,-238.065199,0.00019875,2]
[359069152,1745692250306,-1552.37,0.00019875,2]
[359069153,1745692250318,-151.0,0.00019875,2]
[359069154,1745692250332,-238.065199,0.00019875,2]
[359069155,1745692250345,-400.0,0.00019875,2]
[359069156,1745692250358,-151.0,0.00019875,2]
[359069157,1745692250370,-400.0,0.00019875,2]
[359069158,1745692250382,-151.0,0.00019875,2]
[359069159,1745692250395,-400.0,0.00019875,2]
[359069160,1745692250408,-151.0,0.00019875,2]
[359069161,1745692250422,-400.0,0.00019875,2]
[359069162,1745692250435,-400.0,0.00019875,2]
[359069163,1745692250448,-151.0,0.00019875,2]
[359069164,1745692250461,-400.0,0.00019875,2]
[359069165,1745692250473,-531.91,0.00019875,2]
[359069166,1745692250485,-400.0,0.00019875,2]
[359069167,1745692250498,-459.841495,0.00019875,2]
[359069168,1745692250511,-663.94,0.00019875,2]
[359069169,1745692250524,-459.841495,0.00019875,2]
[359069170,1745692250536,-151.0,0.00019875,2]
[359069171,1745692250548,-980.72,0.00019875,2]
[359069172,1745692250560,-980.72,0.00019875,2]
[359069173,1745692250571,-151.0,0.00019875,2]
[359069174,1745692250583,-714.2,0.00019875,2]
[359069175,1745692250595,-400.0,0.00019875,2]
[359069176,1745692250606,-151.0,0.00019875,2]
[359069177,1745692250618,-654.37,0.00019875,2]
[359069178,1745692250630,-361.98481845,0.00019875,2]
[359069179,1745692250642,-400.0,0.00019875,2]
[359069180,1745692250655,-462.53,0.00019875,2]
[359069181,1745692250666,-800.44,0.00019875,2]
[359069182,1745692250678,-151.0,0.00019875,2]
[359069183,1745692250690,-151.0,0.00019875,2]
[359069184,1745692250702,-151.0,0.00019875,2]
[359069185,1745692250713,-400.0,0.00019875,2]
[359069186,1745692250725,-400.0,0.00019875,2]
[359069187,1745692250736,-400.0,0.00019875,2]
[359069188,1745692250747,-239.72,0.00019875,2]
[359069189,1745692250759,-400.0,0.00019875,2]
[359069190,1745692250772,-312.313674,0.00019875,2]
[359069191,1745692250784,-400.0,0.00019875,2]
[359069192,1745692250797,-312.313674,0.00019875,2]
[359069193,1745692250809,-400.0,0.00019875,2]
[359069194,1745692250821,-151.0,0.00019875,2]
[359069195,1745692250833,-400.0,0.00019875,2]
[359069196,1745692250845,-714.12,0.00019875,2]
[359069197,1745692250858,-400.0,0.00019875,2]
[359069198,1745692250870,-400.0,0.00019875,2]
[359069199,1745692250883,-400.0,0.00019875,2]
[359069200,1745692250895,-294.375668,0.00019875,2]
[359069201,1745692250907,-294.375668,0.00019875,2]
[359069202,1745692250919,-285.99379223,0.00019875,2]
[359069203,1745692250934,-400.0,0.00019875,2]
[359069204,1745692250946,-400.0,0.00019875,2]
[359069205,1745692250958,-772.41,0.00019875,2]
[359069206,1745692250970,-400.0,0.00019875,2]
[359069207,1745692250980,-400.0,0.00019875,2]
[359069208,1745692250990,-589.042961,0.00019875,2]
[359069209,1745692251000,-400.0,0.00019875,2]
[359069210,1745692251011,-151.0,0.00019875,2]
[359069211,1745692251020,-589.042961,0.00019875,2]
[359069212,1745692251032,-151.0,0.00019875,2]
[359069213,1745692251042,-400.0,0.00019875,2]
[359069214,1745692251051,-169.789393,0.00019875,2]
[359069215,1745692251061,-169.789393,0.00019875,2]
[359069216,1745692251070,-856.29,0.00019875,2]
[359069217,1745692251080,-199.454936,0.00019875,2]
[359069218,1745692251090,-400.0,0.00019875,2]
[359069219,1745692251101,-955.58,0.00019875,2]
[359069220,1745692251111,-1098.72,0.00019875,2]
[359069221,1745692251121,-450.41,0.00019875,2]
[359069222,1745692251132,-400.0,0.00019875,2]
[359069223,1745692251142,-742.95,0.00019875,2]
[359069224,1745692251153,-151.0,0.00019875,2]
[359069225,1745692251163,-400.0,0.00019875,2]
[359069226,1745692251173,-277.58244899,0.00019875,2]
[359069227,1745692251183,-151.0,0.00019875,2]
[359069228,1745692251192,-404.08,0.00019875,2]
[359069229,1745692251202,-151.0,0.00019875,2]
[359069230,1745692251211,-462.44,0.00019875,2]
[359069231,1745692251750,-465.94,0.00019875,2]
[359069232,1745692251780,-727.59,0.00019875,2]
[359069233,1745692251809,-400.0,0.00019875,2]
[359069234,1745692251819,-599.97,0.00019875,2]
[359069235,1745692251830,-717.31,0.00019875,2]
[359069236,1745692251842,-400.0,0.00019875,2]
[359069237,1745692251852,-850299.32462206,0.00019876,2]
[359069238,1745692251862,-150686.03517889,0.00019876,2]
[359069239,1745692251872,-200.0,0.00019876,2]
[359069240,1745692251882,-400.0,0.00019876,2]
[359069241,1745692251893,-400.0,0.00019876,2]
[359069242,1745692251904,-200.0,0.00019876,2]
[359069243,1745692251914,-400.0,0.00019876,2]
[359069244,1745692251924,-400.0,0.00019876,2]
[359069245,1745692251935,-400.0,0.00019876,2]
[359069246,1745692251947,-400.0,0.00019876,2]
[359069247,1745692251958,-400.0,0.00019876,2]
[359069248,1745692251969,-400.0,0.00019876,2]
[359069249,1745692251978,-400.0,0.00019876,2]
[359069250,1745692251991,-151.0,0.00019876,2]
[359069251,1745692252003,-151.0,0.00019876,2]
[359069252,1745692252015,-151.0,0.00019876,2]
[359069253,1745692252025,-153.932324,0.00019876,2]
[359069254,1745692252035,-153.816095,0.00019876,2]
[359069255,1745692252046,-151.0,0.00019876,2]
[359069256,1745692252056,-151.0,0.00019876,2]
[359069257,1745692252066,-168.035566,0.00019876,2]
[359069258,1745692252076,-151.0,0.00019876,2]
[359069259,1745692252087,-151.0,0.00019876,2]
[359069260,1745692252096,-151.0,0.00019876,2]
[359069261,1745692252106,-151.0,0.00019876,2]
[359069262,1745692252116,-151.0,0.00019876,2]
[359069263,1745692252125,-151.0,0.00019876,2]
[359069264,1745692252136,-151.0,0.00019876,2]
[359069265,1745692252146,-152.798905,0.00019876,2]
[359069266,1745692252155,-151.496892,0.00019876,2]
[359069267,1745692252165,-301.431616,0.00019876,2]
[359069268,1745692252175,-151.0,0.00019876,2]
[359069269,1745692252185,-151.0,0.00019876,2]
[359069270,1745692252195,-151.0,0.00019876,2]
[359069271,1745692252205,-156.668514,0.00019876,2]
[359069272,1745692252216,-153.766835,0.00019876,2]
[359069273,1745692252226,-151.0,0.00019876,2]
[359069274,1745692252235,-151.0,0.00019876,2]
[359069275,1745692252245,-270.511633,0.00019876,2]
[359069276,1745692252258,-151.0,0.00019876,2]
[359069277,1745692252268,-151.0,0.00019876,2]
[359069278,1745692252279,-151.0,0.00019876,2]
[359069279,1745692252289,-151.0,0.00019876,2]
[359069280,1745692252299,-151.0,0.00019876,2]
[359069281,1745692252309,-151.0,0.00019876,2]
[359069282,1745692252319,-155.609916,0.00019876,2]
[359069283,1745692252330,-151.0,0.00019876,2]
[359069284,1745692252340,-151.0,0.00019876,2]
[359069285,1745692252349,-151.0,0.00019876,2]
[359069286,1745692252359,-151.0,0.00019876,2]
[359069287,1745692252368,-411.11,0.00019876,2]
[359069288,1745692252378,-453.61,0.00019876,2]
[359069289,1745692252387,-642.39,0.00019876,2]
[359069290,1745692252398,-672.89,0.00019876,2]
[359069291,1745692252408,-446.967519,0.00019876,2]
[359069292,1745692252419,-446.967519,0.00019876,2]
[359069293,1745692252429,-1195.3,0.00019876,2]
[359069294,1745692252440,-432.89,0.00019876,2]
[359069295,1745692252451,-1126.58,0.00019876,2]
[359069296,1745692252461,-151.0,0.00019876,2]
[359069297,1745692252471,-151.0,0.00019876,2]
[359069298,1745692252481,-537.88,0.00019876,2]
[359069299,1745692252491,-400.0,0.00019876,2]
[359069300,1745692252502,-1267.56,0.00019876,2]
[359069301,1745692252512,-400.0,0.00019876,2]
[359069302,1745692252522,-483.31,0.00019876,2]
[359069303,1745692252532,-1749.88,0.00019876,2]
[359069304,1745692252542,-400.0,0.00019876,2]
[359069305,1745692252552,-850.15,0.00019876,2]
[359069306,1745692252561,-400.0,0.00019876,2]
[359069307,1745692252571,-781.87,0.00019876,2]
[359069308,1745692252582,-964.29,0.00019876,2]
[359069309,1745692252592,-1935.46,0.00019876,2]
[359069310,1745692252601,-458.1,0.00019876,2]
[359069311,1745692252611,-151.0,0.00019876,2]
[359069312,1745692252621,-151.0,0.00019876,2]
[359069313,1745692252631,-238.065199,0.00019876,2]
[359069314,1745692252640,-238.065199,0.00019876,2]
[359069315,1745692252652,-1000.73,0.00019876,2]
[359069316,1745692252664,-238.065199,0.00019876,2]
[359069317,1745692252674,-684.27,0.00019876,2]
[359069318,1745692252684,-238.065199,0.00019876,2]
[359069319,1745692252694,-757.15,0.00019876,2]
[359069320,1745692252704,-400.0,0.00019876,2]
[359069321,1745692252715,-151.0,0.00019876,2]
[359069322,1745692252726,-154.919763,0.00019876,2]
[359069323,1745692252736,-820.97,0.00019876,2]
[359069324,1745692252747,-658.4,0.00019876,2]
[359069325,1745692252757,-601.83,0.00019876,2]
[359069326,1745692252767,-153.946772,0.00019876,2]
[359069327,1745692252777,-400.0,0.00019876,2]
[359069328,1745692252787,-662.16,0.00019876,2]
[359069329,1745692252797,-4010.85,0.00019876,2]
[359069330,1745692252807,-459.841495,0.00019876,2]
[359069331,1745692252817,-669.27,0.00019876,2]
[359069332,1745692252827,-459.841495,0.00019876,2]
[359069333,1745692252837,-151.0,0.00019876,2]
[359069334,1745692252848,-980.72,0.00019876,2]
[359069335,1745692252859,-151.0,0.00019876,2]
[359069336,1745692252868,-802.45,0.00019876,2]
[359069337,1745692252878,-249.073467,0.00019876,2]
[359069338,1745692252890,-200.0,0.00019876,2]
[359069339,1745692252901,-400.0,0.00019876,2]
[359069340,1745692252911,-151.0,0.00019876,2]
[359069341,1745692252921,-151.0,0.00019876,2]
[359069342,1745692252932,-666.74,0.00019876,2]
[359069343,1745692252942,-400.0,0.00019876,2]
[359069344,1745692252953,-312.313674,0.00019876,2]
[359069345,1745692252963,-400.0,0.00019876,2]
[359069346,1745692252973,-312.313674,0.00019876,2]
[359069347,1745692252983,-400.0,0.00019876,2]
[359069348,1745692252992,-151.0,0.00019876,2]
[359069349,1745692253002,-862.22,0.00019876,2]
[359069350,1745692253011,-400.0,0.00019876,2]
[359069351,1745692253021,-457.11,0.00019876,2]
[359069352,1745692253031,-294.375668,0.00019876,2]
[359069353,1745692253040,-294.375668,0.00019876,2]
[359069354,1745692253050,-455.72,0.00019876,2]
[359069355,1745692253060,-419.9,0.00019876,2]
[359069356,1745692253071,-4451.81,0.00019876,2]
[359069357,1745692253081,-589.042961,0.00019876,2]
[359069358,1745692253091,-151.0,0.00019876,2]
[359069359,1745692253100,-151.0,0.00019876,2]
[359069360,1745692253110,-589.042961,0.00019876,2]
[359069361,1745692253119,-151.0,0.00019876,2]
[359069362,1745692253129,-169.789393,0.00019876,2]
[359069363,1745692253138,-169.789393,0.00019876,2]
[359069364,1745692253148,-235.852517,0.00019876,2]
[359069365,1745692253157,-235.852517,0.00019876,2]
[359069366,1745692253167,-151.0,0.00019876,2]
[359069367,1745692253179,-151.0,0.00019876,2]
[359069368,1745692253188,-151.0,0.00019876,2]
[359069369,1745692253198,-151.0,0.00019876,2]
[359069370,1745692253208,-157.668933,0.00019876,2]
[359069371,1745692253217,-151.0,0.00019876,2]
[359069372,1745692253227,-614.535293,0.00019876,2]
[359069373,1745692253237,-614.535293,0.00019876,2]
[359069374,1745692253246,-151.0,0.00019876,2]
[359069375,1745692253258,-338.61098,0.00019876,2]
[359069376,1745692253267,-257.672246,0.00019876,2]
[359069377,1745692253277,-151.0,0.00019876,2]
[359069378,1745692253287,-338.61098,0.00019876,2]
[359069379,1745692253297,-151.0,0.00019876,2]
[359069380,1745692253307,-151.0,0.00019876,2]
[359069381,1745692253316,-1211.89238905,0.00019876,2]
[359069382,1745692253326,-305.73026971,0.00019877,2]
[359069383,1745692253336,-3205.85441286,0.00019877,2]
[359069384,1745692253346,-1150.01,0.00019877,2]
[359069385,1745692253355,-390.57267252,0.00019877,2]
[359069386,1745692253365,-200.0,0.00019877,2]
[359069387,1745692253375,-150.0,0.00019877,2]
[359069388,1745692253384,-810.91,0.00019877,2]
[359069389,1745692253393,-400.0,0.00019877,2]
[359069390,1745692253403,-151.0,0.00019877,2]
[359069391,1745692253412,-400.0,0.00019877,2]
[359069392,1745692253421,-1752.11909453,0.00019877,2]
[359069393,1745692253431,-151.0,0.00019877,2]
[359069394,1745692253441,-400.0,0.00019877,2]
[359069395,1745692253450,-400.0,0.00019877,2]
[359069396,1745692253460,-400.0,0.00019877,2]
[359069397,1745692253469,-400.0,0.00019877,2]
[359069398,1745692253478,-300.0,0.00019877,2]
[359069399,1745692253487,-400.0,0.00019877,2]
[359069400,1745692253497,-400.0,0.00019877,2]
[359069401,1745692253506,-400.0,0.00019877,2]
[359069402,1745692253515,-300.0,0.00019877,2]
[359069403,1745692253525,-425.83,0.00019877,2]
[359069404,1745692253535,-648.3,0.00019877,2]
[359069405,1745692253545,-400.0,0.00019877,2]
[359069406,1745692253555,-400.0,0.00019877,2]
[359069407,1745692253564,-485.26,0.00019877,2]
[359069408,1745692253574,-400.0,0.00019877,2]
[359069409,1745692253584,-350.02092659,0.00019877,2]
[359069410,1745692253593,-334.88885956,0.00019877,2]
[359069411,1745692253603,-400.0,0.00019877,2]
[359069412,1745692253613,-400.0,0.00019877,2]
[359069413,1745692253622,-400.0,0.00019877,2]
[359069414,1745692253631,-400.0,0.00019877,2]
[359069415,1745692253640,-400.0,0.00019877,2]
[359069416,1745692253650,-634.71,0.00019877,2]
[359069417,1745692253659,-400.0,0.00019877,2]
[359069418,1745692253669,-400.0,0.00019877,2]
[359069419,1745692253678,-400.0,0.00019877,2]
[359069420,1745692253687,-446.77,0.00019877,2]
[359069421,1745692253697,-400.0,0.00019877,2]
[359069422,1745692253706,-400.0,0.00019877,2]
[359069423,1745692253716,-400.0,0.00019877,2]
[359069424,1745692253725,-400.0,0.00019877,2]
[359069425,1745692253735,-400.0,0.00019877,2]
[359069426,1745692253745,-400.0,0.00019877,2]
[359069427,1745692253754,-810.48,0.00019877,2]
[359069428,1745692253763,-795.13,0.00019877,2]
[359069429,1745692253773,-400.0,0.00019877,2]
[359069430,1745692253782,-881.17,0.00019877,2]
[359069431,1745692253791,-400.0,0.00019877,2]
[359069432,1745692253801,-400.0,0.00019877,2]
[359069433,1745692253811,-400.0,0.00019877,2]
[359069434,1745692253820,-400.0,0.00019877,2]
[359069435,1745692253830,-400.0,0.00019877,2]
[359069436,1745692253839,-400.0,0.00019877,2]
[359069437,1745692253848,-400.0,0.00019877,2]
[359069438,1745692253858,-400.0,0.00019877,2]
[359069439,1745692253868,-220.92064094,0.00019877,2]
[359069440,1745692253877,-400.0,0.00019877,2]
[359069441,1745692253887,-657.84,0.00019877,2]
[359069442,1745692253897,-657.84,0.00019877,2]
[359069443,1745692253906,-657.84,0.00019877,2]
[359069444,1745692253916,-657.84,0.00019877,2]
[359069445,1745692253926,-657.84,0.00019877,2]
[359069446,1745692253936,-400.0,0.00019877,2]
[359069447,1745692253946,-404.18,0.00019877,2]
[359069448,1745692253957,-792.41,0.00019877,2]
[359069449,1745692253967,-400.0,0.00019877,2]
[359069450,1745692253978,-275.02640054,0.00019877,2]
[359069451,1745692253989,-400.0,0.00019877,2]
[359069452,1745692253999,-556.49,0.00019877,2]
[359069453,1745692254008,-400.0,0.00019877,2]
[359069454,1745692254018,-500.0,0.00019877,2]
[359069455,1745692254029,-400.0,0.00019877,2]
[359069456,1745692254039,-608.73,0.00019877,2]
[359069457,1745692254048,-500.0,0.00019877,2]
[359069458,1745692254060,-400.0,0.00019877,2]
[359069459,1745692254072,-643.1,0.00019877,2]
[359069460,1745692254082,-400.0,0.00019877,2]
[359069461,1745692254092,-400.0,0.00019877,2]
[359069462,1745692254102,-400.0,0.00019877,2]
[359069463,1745692254112,-400.0,0.00019877,2]
[359069464,1745692254122,-500.0,0.00019877,2]
[359069465,1745692254132,-400.0,0.00019877,2]
[359069466,1745692254142,-400.0,0.00019877,2]
[359069467,1745692254152,-200.0,0.00019877,2]
[359069468,1745692254162,-400.0,0.00019877,2]
[359069469,1745692254171,-400.0,0.00019877,2]
[359069470,1745692254181,-808.25,0.00019877,2]
[359069471,1745692254191,-400.0,0.00019877,2]
[359069472,1745692254201,-153.095165,0.00019877,2]
[359069473,1745692254210,-1267.56,0.00019877,2]
[359069474,1745692254220,-1267.56,0.00019877,2]
[359069475,1745692254230,-1267.56,0.00019877,2]
[359069476,1745692254239,-1267.56,0.00019877,2]
[359069477,1745692254249,-151.0,0.00019877,2]
[359069478,1745692254261,-238.065199,0.00019877,2]
[359069479,1745692254271,-238.065199,0.00019877,2]
[359069480,1745692254281,-151.0,0.00019877,2]
[359069481,1745692254291,-459.841495,0.00019877,2]
[359069482,1745692254301,-459.841495,0.00019877,2]
[359069483,1745692254311,-151.0,0.00019877,2]
[359069484,1745692254322,-151.0,0.00019877,2]
[359069485,1745692254332,-151.0,0.00019877,2]
[359069486,1745692254342,-151.0,0.00019877,2]
[359069487,1745692254352,-312.313674,0.00019877,2]
[359069488,1745692254362,-312.313674,0.00019877,2]
[359069489,1745692254372,-151.0,0.00019877,2]
[359069490,1745692254382,-294.375668,0.00019877,2]
[359069491,1745692254392,-294.375668,0.00019877,2]
[359069492,1745692254403,-589.042961,0.00019877,2]
[359069493,1745692254414,-151.0,0.00019877,2]
[359069494,1745692254425,-151.0,0.00019877,2]
[359069495,1745692254435,-589.042961,0.00019877,2]
[359069496,1745692254445,-222.01626,0.00019877,2]
[359069497,1745692254456,-169.789393,0.00019877,2]
[359069498,1745692254466,-169.789393,0.00019877,2]
[359069499,1745692254476,-235.852517,0.00019877,2]
[359069500,1745692254488,-235.852517,0.00019877,2]
[359069501,1745692254497,-151.0,0.00019877,2]
[359069502,1745692254507,-151.0,0.00019877,2]
[359069503,1745692254516,-151.0,0.00019877,2]
[359069504,1745692254525,-151.0,0.00019877,2]
[359069505,1745692254534,-614.535293,0.00019877,2]
[359069506,1745692254543,-614.535293,0.00019877,2]
[359069507,1745692254553,-151.0,0.00019877,2]
[359069508,1745692254565,-299.54965632,0.00019879,2]
[359069509,1745692254575,-186.79983941,0.0001988,2]
[359069510,1745692254586,-32907.909847,0.0001988,2]
[359069511,1745692254597,-151.0,0.0001988,2]
[359069512,1745692254608,-151.0,0.0001988,2]
[359069513,1745692254619,-151.0,0.0001988,2]
[359069514,1745692254629,-151.0,0.0001988,2]
[359069515,1745692254639,-151.0,0.0001988,2]
[359069516,1745692254650,-151.0,0.0001988,2]
[359069517,1745692254662,-151.0,0.0001988,2]
[359069518,1745692254672,-151.0,0.0001988,2]
[359069519,1745692254681,-446.967519,0.0001988,2]
[359069520,1745692254691,-151.0,0.0001988,2]
[359069521,1745692254700,-151.0,0.0001988,2]
[359069522,1745692254711,-338.61098,0.0001988,2]
[359069523,1745692254723,-151.0,0.0001988,2]
[359069524,1745692254733,-338.61098,0.0001988,2]
[359069525,1745692254745,-151.0,0.0001988,2]
[359069526,1745692254755,-675.14691529,0.00019881,2]
[359069527,1745692254764,-152.1287992,0.00019885,2]
[359069528,1745692254775,-151.0,0.00019885,2]
[359069529,1745692254784,-151.0,0.00019885,2]
[359069530,1745692254794,-151.0,0.00019885,2]
[359069531,1745692254804,-151.0,0.00019885,2]
[359069532,1745692254813,-657.84,0.00019885,2]
[359069533,1745692254823,-657.84,0.00019885,2]
[359069534,1745692254832,-657.84,0.00019885,2]
[359069535,1745692254842,-657.84,0.00019885,2]
[359069536,1745692254851,-657.84,0.00019885,2]
[359069537,1745692254861,-657.84,0.00019885,2]
[359069538,1745692255123,-657.84,0.00019885,2]
[359069539,1745692255133,-657.84,0.00019885,2]
[359069540,1745692255143,-657.84,0.00019885,2]
[359069541,1745692255153,-657.84,0.00019885,2]
[359069542,1745692255163,-657.84,0.00019885,2]
[359069543,1745692255173,-657.84,0.00019885,2]
[359069544,1745692255182,-151.0,0.00019885,2]
[359069545,1745692255192,-151.0,0.00019885,2]
[359069546,1745692255202,-151.0,0.00019885,2]
[359069547,1745692255211,-151.0,0.00019885,2]
[359069548,1745692255223,-151.0,0.00019885,2]
[359069549,1745692255232,-151.0,0.00019885,2]
[359069550,1745692255242,-151.0,0.00019885,2]
[359069551,1745692255253,-446.967519,0.00019885,2]
[359069552,1745692255263,-1267.56,0.00019885,2]